Workbook

Sheet Druckdispositiv
B1: Bestimmung der Belastungswerte und Spitzendurchfluss Hausanschlussleitung
B2: Teilstrecke | C2: Σ LU (früher DU) [LU] | D2: Σ Fluss QT = LU*0.1 [l/s] | F2: Spitzendurchfluss QD1 = 0.598 * QT0.257 [l/s] | I2: Spitzendurchfluss QD2 = bes. Zustände [l/s] | L2: Spitzendurchfluss QD = QD1 + QD2 [l/s]
B3: Hausanschlussleitung | C3: 0 | D3: =IF(C3="","",C3*0.1) -> 0 | E3: * | F3: =ROUND(0.598*POWER(D3,0.257),2) -> 0 | H3: + | I3: 0 | K3: = | L3: =F3+I3 -> 0
B4: Druckminderer | C4: 0 | D4: =IF(C4="","",C4*0.1) -> 0 | F4: =IF(C4="","",ROUND(0.598*POWER(D4,0.257),2)) -> 0 | H4: + | I4: 0 | K4: = | L4: =IF(F4="","",F4+I4) -> 0
B5: Berechnung des Betriebsdruckes nach dem Wasserzähler
B6: Höhe Reservoir der Netzbetreiberin (Überlauf) | F6: h1 = | G6: 655.2
B7: Höhe Hausanschlussleitung bei Verteilbatterie | F7: h2 = | G7: 0
B8: Differenz Reservoir - Verteilbatterie | F8: Δh12 = | G8: =IF(AND(G6="",G7=""),"",G6-G7) -> 655.2 | J8: pRh1 ≈ | K8: =$G$8*9.81 -> 6427.512 | M8: =K8/100 -> 64.27512
B10: Druckschwankungen im Reservoir und Netz | J10: ∆pVL = | K10: 50 | M10: =K10/100 -> 0.5
B11: Versorgungsdruck: | F11: SP = pRh1 - ∆pVL | J11: SP = | K11: =K8-K10 -> 6377.512 | M11: =K11/100 -> 63.77512
B13: Druckverlust Hausanschlussleitung (Annhahme) | J13: ∆pAL = | K13: 50 | M13: =K13/100 -> 0.5
B14: - Δp Wasserzähler | C14: bei QD = | D14: =L3 -> 0 | J14: ∆pWZ = | K14: 45 | M14: =K14/100 -> 0.45
B15: - Δp Feinfilter Netzdruck | C15: bei QD = | D15: =L3 -> 0 | J15: ∆pFN = | K15: 0 | M15: =K15/100 -> 0
B16: Betriebsdruck nach dem Wasserzähler: | F16: OPWZ = SP - ∆pAL - ∆pWZ | J16: OPWZ = | K16: =ROUND(K11-SUM(K13:K15),0) -> 6283 | M16: =K16/100 -> 62.83
J17: =IF(K11<=500,"Passtückes für DM einbauen.","Druckminderer einbauen.") -> Druckminderer einbauen.
B18: Berechnung des zur Verfügung stehenden Druckverlustes
B19: =IF(K16<=500,"Betriebsdruck nach dem Wasserzähler","Ruhedruck für Druckminderer") -> Ruhedruck für Druckminderer | F19: PR DM = | G19: 500 | J19: =IF(K16<=500,J16,F19) -> PR DM = | K19: =IF(K16<=500,K16,G19) -> 500 | M19: =K19/100 -> 5
B20: - Δp Feinfilter | C20: bei QD = | D20: =IF(L4="",$L$3,$L$4) -> 0 | J20: ∆pAPP2 = | K20: 0 | M20: =IF(K20="","",K20/100) -> 0
B21: - Δp Enthärtung | C21: bei QD = | D21: =IF(L4="",$L$3,$L$4) -> 0 | J21: ∆pAPP3 = | K21: 0 | M21: =IF(K21="","",K21/100) -> 0
B22: Höhenunterschied DM - höchste Entnahmestelle | F22: h2 = | G22: 0 | J22: pRh2 ≈ | K22: =IF(G22="","",G22*1000*9.81/1000) -> 0 | M22: =K22/100 -> 0
B23: Fliessdruck höchste Entnahmestelle | J23: pminFl = | K23: 0 | M23: =fl/100 -> 0
B24: Zur Verfügung stehender Druckverlust | F24: ∆pL = OPWZ - ∆pAPP - pRh2 - pminFl | J24: ∆pL = | K24: =K19-SUM(K20:K21)-K22-fl -> 500 | M24: =K24/100 -> 5
B25: Entscheidungsgrundlagen
B26: - Alle Apparate gemäss: | F26: Tabelle 3 | H26: TRUE
B27: - Max. Abgewickelte Rohrlänge Stockwerk | F27: < 15 m | H27: TRUE
B28: - Max. Abgewickelte Rohrlänge Verteilleitungen | F28: < 35 m | H28: TRUE
B29: - Besondere Zustände | F29: Diagramm 1 | H29: TRUE
B30: - Zur Verfügung stehender Druckverlust | F30: =$K$24 -> 500 | H30: 150
B31: Entscheid für Rohrweitenbestimmung: | F31: =IF(H26=TRUE,IF(H27=TRUE,IF(H28=TRUE,IF(H29=TRUE,IF(F30>150,"Vereinfachte Rohrweitenbestimmung.","Berechnungsverfahren durchführen."),"Berechnungsverfahren durchführen."),"Berechnungsverfahren durchführen."),"Berechnungsverfahren durchführen."),"Berechnungsverfahren durchführen.") -> Vereinfachte Rohrweitenbestimmung.
B33: Daten für Druckdispositiv
C34: x | D34: y
B35: Statischer Druck | C35: 0 | D35: =K8 -> 6427.512
C36: 4 | D36: =K8 -> 6427.512
B37: - Schwankungen Wasserstand | C37: 4 | D37: =D36-K10 -> 6377.512
B38: - dp Hauptleitung | C38: 8 | D38: =D37-X42 -> 6377.512
B39: - dp Zuleitung | C39: 12 | D39: =D38-K13 -> 6327.512
C40: 12 | D40: =D39-X44 -> 6327.512
C41: 16 | D41: =D40 -> 6327.512
B42: - dp Zähler | C42: 16 | D42: =D41-K14 -> 6282.512
C43: 20 | D43: =D42 -> 6282.512
B44: - dp Feinfilter | C44: 20 | D44: =D43-K15 -> 6282.512
C45: 24 | D45: =D44 -> 6282.512
B46: = vordruck | C46: 28 | D46: =D45 -> 6282.512
C47: 28 | D47: =D46 -> 6282.512
C48: 28 | D48: =IF(vordruck>=nachdruck,vordruck,aus) -> 6283 | F48: =D48 -> 6283
C49: 28 | D49: =IF(vordruck>nachdruck,vordruck,aus) -> 6283
C50: 28 | D50: =IF(vordruck>nachdruck,vordruck,D51) -> 6283
C51: 28 | D51: =IF(vordruck>nachdruck,vordruck,ein) -> 6283
C52: 28 | D52: =IF(vordruck>nachdruck,vordruck,ein) -> 6283 | F52: =D51 -> 6283
B53: DM | C53: 28 | D53: =IF(vordruck>=nachdruck,D46,D55) -> 6282.512
B54: - Funktion | C54: 28 | D54: =IF(vordruck>=nachdruck,D55,D52) -> 500
B55: = nachdruck | C55: 28 | D55: =K19 -> 500
B56: - dp Druckminderer | C56: 28 | D56: =D55-K20 -> 500
B57: - dp Feinfilter | C57: 32 | D57: =D58+K20 -> 500
B58: - dp Enthärtung | C58: 32 | D58: =D60+K21 -> 500
C59: 36 | D59: =D58 -> 500
B60: Steigleitung | C60: 36 | D60: =D62+K22 -> 500
C61: 40 | D61: =D60 -> 500
B62: Druckverlust | C62: 40 | D62: =D63+K24 -> 500
B63: Fliessdruck | C63: 44 | D63: =IF(vordruck<nachdruck,fl,IF((vordruck-nachdruck)<=0.5,fl+(vordruck-nachdruck),fl)) -> 0
